bitfinex-derivatives/quotes_ETHF0:USTF0_20241102
["timestamp","ask_amount","ask_price","bid_price","bid_amount"]
[1730522531557,0.4213,2505.0,2504.9,1.42981226]
[1730522532351,0.4213,2505.0,2504.9,5.42181226]
[1730522534264,0.4213,2505.0,2504.9,1.42981226]
[1730522535461,0.4213,2505.0,2504.8,0.27955]
[1730522535764,0.4213,2505.0,2504.9,1.11055]
[1730522536460,0.4213,2505.0,2504.9,0.27955]
[1730522538459,0.4213,2505.0,2504.8,0.27955]
[1730522538658,0.70084,2505.0,2504.8,1.11055]
[1730522538853,0.4213,2505.0,2504.9,0.27955]
[1730522539050,0.4213,2505.0,2504.8,0.831]
[1730522539051,1.57156226,2505.0,2504.4,3.2078]
[1730522539254,1.15026226,2504.7,2504.6,0.27957]
[1730522539452,1.15026226,2504.7,2504.5,0.27958]
[1730522539663,0.8512,2504.6,2504.5,0.27958]
[1730522540061,0.8512,2504.6,2504.4,4.0388]
[1730522540255,0.8512,2504.6,2504.4,4.3184]
[1730522540457,2.94244146,2504.6,2504.4,4.3184]
[1730522540662,3.22202146,2504.6,2504.4,4.3184]
[1730522541060,2.94244146,2504.6,2504.4,4.3184]
[1730522541258,2.09124146,2504.5,2504.4,1.1106]
[1730522541660,2.09124146,2504.5,2504.3,0.27961]
[1730522541858,5.29904146,2504.5,2504.3,0.27961]
[1730522542261,5.29904146,2504.5,2504.4,0.2796]
[1730522546865,5.75384146,2504.5,2504.4,0.2796]
[1730522547261,2.54604146,2504.5,2504.4,0.2796]
[1730522550370,2.54604146,2504.5,2504.1,1.15026226]
[1730522550674,3.24150372,2504.3,2504.1,0.27963]
[1730522550967,0.4397,2504.2,2504.1,0.27963]
[1730522551169,0.8615,2504.2,2504.1,0.27963]
[1730522552165,2.95274146,2504.2,2504.1,0.27963]
[1730522554072,8.09660372,2504.2,2504.1,0.27963]
[1730522556173,6.94634146,2504.2,2504.1,0.27963]
[1730522563277,11.58402372,2504.2,2504.1,0.27963]
[1730522563672,11.30440372,2504.2,2504.1,0.27963]
[1730522564274,8.09660372,2504.2,2504.1,0.27963]
[1730522564474,11.30440372,2504.2,2504.1,0.27963]
[1730522565172,4.10300372,2504.2,2504.1,0.27963]
[1730522565372,8.09660372,2504.2,2504.1,0.27963]
[1730522567582,6.28498226,2504.2,2504.1,0.27963]
[1730522567785,8.09660372,2504.2,2504.1,0.27963]
[1730522568576,6.00536226,2504.2,2504.1,0.27963]
[1730522569180,5.21956226,2504.2,2504.1,0.27963]
[1730522569381,9.21316226,2504.2,2504.1,0.27963]
[1730522569576,6.00536226,2504.2,2504.1,0.27963]
[1730522569778,9.21316226,2504.2,2504.1,0.27963]
[1730522570079,11.58402372,2504.2,2504.1,0.27963]
[1730522570474,9.21316226,2504.2,2504.1,0.27963]
[1730522572784,5.21956226,2504.2,2504.1,0.27963]
[1730522575281,7.31080372,2504.2,2504.1,0.27963]
[1730522575681,5.21956226,2504.2,2504.1,0.27963]
[1730522575878,7.31080372,2504.2,2504.1,0.27963]
[1730522576183,4.10300372,2504.2,2504.1,0.27963]
[1730522576488,7.31080372,2504.2,2504.1,0.27963]
[1730522578187,11.30440372,2504.2,2504.1,0.27963]
[1730522578388,9.21316226,2504.2,2504.1,0.27963]
[1730522578786,11.29849346,2504.2,2504.1,0.27963]
[1730522579181,5.21956226,2504.2,2504.1,0.27963]
[1730522580582,2.01176226,2504.2,2504.1,0.27963]
[1730522581184,4.62727792,2504.2,2504.1,0.27963]
[1730522582883,4.7036498,2504.2,2504.1,1.42989226]
[1730522583092,3.2078,2504.6,2504.2,0.27962]
[1730522583093,2.08813414,2504.3,2504.2,0.27962]
[1730522583290,2.61551566,2504.4,2504.3,0.71191]
[1730522585179,1.15026226,2504.5,2504.4,0.2796]
[1730522585791,1.42985226,2504.5,2504.4,0.2796]
[1730522587091,1.15026226,2504.5,2504.4,0.2796]
[1730522587802,1.42985226,2504.5,2504.4,0.2796]
[1730522589291,1.15026226,2504.5,2504.4,0.2796]
[1730522590394,4.63765226,2504.5,2504.4,0.2796]
[1730522590596,7.77390004,2504.5,2504.4,0.2796]
[1730522590889,11.76670004,2504.5,2504.4,0.2796]
[1730522591295,11.48711004,2504.5,2504.4,0.2796]
[1730522591999,11.76670004,2504.5,2504.4,0.2796]
[1730522592596,11.48711004,2504.5,2504.4,0.2796]
[1730522595995,7.49431004,2504.5,2504.4,0.2796]
[1730522596203,8.27931004,2504.5,2504.4,0.2796]
[1730522597105,4.28651004,2504.5,2504.4,0.2796]
[1730522597400,8.27931004,2504.5,2504.4,0.2796]
[1730522600198,4.28651004,2504.5,2504.4,0.2796]
[1730522600400,8.27931004,2504.5,2504.4,0.2796]
[1730522600803,4.28651004,2504.5,2504.4,0.2796]
[1730522601006,8.27931004,2504.5,2504.4,0.2796]
[1730522601305,4.28651004,2504.5,2504.4,0.2796]
[1730522601506,8.27931004,2504.5,2504.4,0.2796]
[1730522603210,3.13624778,2504.5,2504.4,0.2796]
[1730522603399,6.34404778,2504.6,2504.1,3.09684226]
[1730522603604,3.2078,2504.6,2504.5,0.27959]
[1730522604006,6.34448902,2504.6,2504.5,0.27959]
[1730522604404,6.62406902,2504.6,2504.5,0.27959]
[1730522604607,6.34448902,2504.6,2504.5,0.27959]
[1730522609709,7.77433128,2504.6,2504.5,0.27959]
[1730522613116,4.56653128,2504.6,2504.5,0.27959]
[1730522613508,7.77433128,2504.6,2504.5,0.27959]
[1730522614811,4.56653128,2504.6,2504.5,0.27959]
[1730522615015,7.77433128,2504.6,2504.5,0.27959]
[1730522617518,4.56653128,2504.6,2504.5,0.27959]
[1730522617920,7.77433128,2504.6,2504.5,0.27959]
[1730522618624,4.56653128,2504.6,2504.5,0.27959]
[1730522618822,0.27961,2504.4,2504.3,0.2796]
[1730522619320,0.2796,2504.4,2504.3,0.2796]
[1730522619523,0.7123,2504.4,2504.3,0.2796]
[1730522619724,0.4327,2504.4,2504.3,0.2796]
[1730522620326,0.7123,2504.4,2504.3,0.2796]
[1730522620728,0.4327,2504.4,2504.3,0.2796]
[1730522621027,6.34459692,2504.6,2504.5,0.27959]
[1730522621326,6.77729692,2504.6,2504.5,0.27959]
[1730522623934,3.56949692,2504.6,2504.5,0.27959]
[1730522625120,3.13679692,2504.6,2504.5,0.27959]
[1730522626824,6.34459692,2504.7,2504.6,0.27958]
[1730522627422,3.48737,2504.7,2504.6,0.27958]
[1730522627724,6.34581503,2504.7,2504.6,0.27958]
[1730522628729,6.34581503,2504.7,2504.6,0.83282295]
[1730522629122,6.34581503,2504.7,2504.6,0.27958]
[1730522629123,3.2078,2504.7,2504.6,0.27958]
[1730522629323,3.2078,2504.7,2504.6,1.25575096]
[1730522631121,3.2078,2504.7,2504.6,0.70258]
[1730522631533,3.2078,2504.7,2504.6,0.27958]
[1730522633326,5.45013729,2504.8,2504.4,0.8656]
[1730522633527,2.61330507,2504.5,2504.4,1.1452]
[1730522633730,2.61330507,2504.5,2504.4,1.6981994]
[1730522633933,3.04050507,2504.5,2504.4,1.6981994]
[1730522637725,3.04050507,2504.5,2504.4,2.5211994]
[1730522640333,3.04050507,2504.5,2504.4,1.9682]
[1730522640531,3.04050507,2504.5,2504.4,2.52111037]
[1730522641528,3.04050507,2504.5,2504.4,2.07581037]
[1730522642829,3.04050507,2504.5,2504.4,1.5229]
[1730522643134,3.04050507,2504.5,2504.4,2.07581284]
[1730522643436,3.04000419,2504.5,2504.4,2.62873308]
[1730522643636,3.04000419,2504.5,2504.4,2.07582024]
[1730522645428,3.04000419,2504.5,2504.4,1.25282024]
[1730522645634,0.70679,2504.5,2504.4,0.2796]
[1730522645827,0.4272,2504.5,2504.4,0.2796]
[1730522646127,0.70679,2504.5,2504.4,0.2796]
[1730522646326,0.4272,2504.5,2504.4,0.2796]
[1730522653537,0.27962,2504.2,2504.1,0.27963]
[1730522653738,1.15026226,2504.2,2503.7,0.823]
[1730522653953,2.61271646,2503.9,2503.6,3.2078]
[1730522654237,2.61269989,2503.8,2503.6,3.2078]
[1730522654448,1.15026226,2503.9,2503.4,0.2797]
[1730522654449,5.09255226,2503.7,2503.4,0.2797]
[1730522654630,3.76174607,2503.5,2503.4,0.2797]
[1730522654834,1.15026226,2503.5,2503.4,0.2797]
[1730522655344,3.75969467,2503.5,2503.4,0.2797]
[1730522656030,3.23669268,2503.5,2503.4,0.2797]
[1730522656541,3.23663198,2503.5,2503.4,0.2797]
[1730522656739,1.15026226,2503.5,2503.4,0.2797]
[1730522657144,3.23575403,2503.5,2503.4,0.2797]
[1730522658038,2.08549177,2503.5,2503.4,0.2797]
[1730522658341,2.08549177,2503.6,2503.5,0.2797]
[1730522660045,7.60113403,2503.7,2503.5,0.2797]
[1730522660245,7.32145403,2503.7,2503.5,0.2797]
[1730522660931,7.60113403,2503.7,2503.5,0.2797]
[1730522663550,7.60113403,2503.7,2503.2,2.03396226]
[1730522663750,7.32145403,2503.7,2503.2,2.03396226]
[1730522664050,2.02816226,2503.7,2503.6,0.27969]
[1730522664847,2.44566226,2503.7,2503.6,0.27969]
[1730522665045,1.2954,2503.7,2503.6,0.27969]
[1730522665852,0.4231,2503.7,2503.6,0.27969]
[1730522666054,2.50319177,2503.9,2503.8,0.27967]
[1730522666246,0.4177,2503.9,2503.8,0.27967]
[1730522666549,3.6496,2504.0,2503.7,1.57216226]
[1730522666750,5.73509177,2504.0,2503.9,0.27966]
[1730522668653,3.6496,2504.0,2503.9,0.27966]
[1730522669351,0.4418,2504.0,2503.9,0.27966]
[1730522674655,2.52729177,2504.0,2503.9,0.27966]
[1730522684563,0.4418,2504.0,2503.9,0.27966]
[1730522687271,2.52729177,2504.0,2503.9,0.27966]
[1730522691169,0.4418,2504.0,2503.9,0.27966]
[1730522691967,2.52618287,2504.0,2503.9,0.27966]
[1730522692178,0.4418,2504.0,2503.9,0.27966]
[1730522693065,0.4177,2504.1,2503.9,1.15026226]
[1730522693264,0.4177,2504.1,2504.0,0.27965]
[1730522693573,0.4177,2504.1,2504.0,0.73375]
[1730522694275,2.5031608,2504.1,2504.0,0.73375]
[1730522697174,0.4177,2504.1,2504.0,0.73375]
[1730522699080,3.02399978,2504.1,2504.0,0.73375]
[1730522699379,0.4177,2504.1,2504.0,0.73375]
[1730522699677,3.02399978,2504.1,2504.0,0.73375]
[1730522700775,0.4177,2504.1,2504.0,0.73375]
[1730522701570,3.06529978,2504.2,2504.1,0.27963]
[1730522701876,3.06813517,2504.2,2504.1,0.27963]
[1730522702171,0.459,2504.2,2504.1,0.27963]
[1730522702978,3.06816541,2504.2,2504.1,0.27963]
[1730522703170,0.459,2504.2,2504.1,0.27963]
[1730522703679,1.88888226,2504.2,2504.1,0.27963]
[1730522704079,1.60926226,2504.2,2504.1,0.27963]
[1730522704280,1.88888226,2504.2,2504.1,0.27963]
[1730522704678,1.60926226,2504.2,2504.1,0.27963]
[1730522712085,4.81706226,2504.2,2504.1,0.27963]
[1730522712283,5.09668226,2504.2,2504.1,0.27963]
[1730522712487,4.81706226,2504.2,2504.1,0.27963]
[1730522714485,5.09668226,2504.2,2504.1,0.27963]
[1730522714986,4.81706226,2504.2,2504.1,0.27963]
[1730522715691,5.09668226,2504.2,2504.1,0.27963]
[1730522716986,4.81706226,2504.2,2504.1,0.27963]
[1730522717791,5.09668226,2504.2,2504.1,0.27963]
[1730522718590,4.81706226,2504.2,2504.1,0.27963]
[1730522718893,5.09668226,2504.2,2504.1,0.27963]
[1730522719094,4.81706226,2504.2,2504.1,0.27963]
[1730522719491,5.09668226,2504.2,2504.1,0.27963]
[1730522719895,1.88888226,2504.2,2504.1,0.27963]
[1730522720094,1.60926226,2504.2,2504.1,0.27963]
[1730522720293,4.81706226,2504.2,2504.1,0.27963]
[1730522723699,1.60926226,2504.2,2504.1,0.27963]
[1730522725098,6.33535974,2504.3,2503.8,1.94067]
[1730522725297,3.2078,2504.3,2504.2,0.27962]
[1730522725996,3.2078,2504.3,2504.2,0.71082]
[1730522726404,3.2078,2504.3,2504.2,5.85468226]
[1730522726694,3.2078,2504.3,2504.2,6.40766374]
[1730522726695,5.82043488,2504.3,2504.2,6.40766374]
[1730522726896,3.2078,2504.3,2504.2,6.40766374]
[1730522727107,3.2078,2504.3,2504.2,5.85468226]
[1730522727495,2.61263488,2504.4,2504.3,0.27961]
[1730522727695,2.61263488,2504.4,2504.3,4.27241]
[1730522727999,2.61263488,2504.5,2504.4,0.2796]
[1730522728301,2.61263488,2504.5,2504.4,1.26564682]
[1730522728496,2.61263488,2504.5,2504.4,5.25844682]
[1730522728700,2.61263488,2504.6,2504.5,0.27959]
[1730522728902,2.61263488,2504.6,2504.5,0.69969]
[1730522729102,9.98911136,2504.8,2504.5,0.4201]
[1730522729303,9.98911136,2504.8,2504.7,0.27957]
[1730522729503,6.86155162,2504.8,2504.7,0.27957]
[1730522730200,3.65375162,2504.8,2504.7,0.27957]
[1730522736295,3.65375162,2504.8,2504.7,0.73907]
[1730522738700,6.26320572,2504.8,2504.7,0.73907]
[1730522739204,3.65375162,2504.8,2504.7,0.73907]
[1730522739405,6.26322948,2504.8,2504.7,0.73907]
[1730522739699,3.65375162,2504.8,2504.7,0.73907]
[1730522739909,6.26302956,2504.8,2504.7,0.73907]
[1730522743211,4.1814402,2504.8,2504.7,0.73907]
[1730522744703,3.03117794,2504.8,2504.7,0.73907]
[1730522744905,2.08762447,2504.8,2504.7,5.88213226]
[1730522745103,2.08762447,2504.9,2504.7,8.81036226]
[1730522745309,2.08762447,2505.1,2505.0,0.27953]
[1730522745611,2.54622447,2505.2,2505.1,0.27952]
[1730522746113,2.54622447,2505.2,2505.1,0.71652]
[1730522747314,0.4586,2505.2,2505.1,0.71652]
[1730522756713,4.81666226,2505.2,2504.7,4.0308]
[1730522756918,0.70193,2505.1,2504.9,0.27954]
[1730522757218,0.4552,2505.0,2504.9,0.27954]
[1730522757416,1.60546226,2505.0,2504.9,0.27954]
[1730522758916,3.97262673,2505.0,2504.8,0.27955]
[1730522759110,0.27955,2504.9,2504.8,0.27956]
[1730522759415,3.97262673,2505.0,2504.8,0.27956]
[1730522759612,3.97262673,2505.0,2504.9,0.27955]
[1730522760723,3.69308673,2505.0,2504.9,0.27955]
[1730522761214,3.97261673,2505.0,2504.9,0.27955]
[1730522761720,3.69308673,2505.0,2504.9,0.27955]
[1730522762919,0.4552,2505.0,2504.9,0.27955]
[1730522766614,0.4224,2505.1,2505.0,0.27953]
[1730522768221,5.75054173,2505.2,2505.1,0.27952]
[1730522769324,2.54274173,2505.2,2505.1,0.27952]
[1730522769517,5.75054173,2505.2,2505.1,0.27952]
[1730522770220,2.54274173,2505.2,2505.1,0.27952]
[1730522771613,0.4586,2505.2,2505.1,0.27952]
[1730522771916,2.54496235,2505.2,2505.1,0.27952]
[1730522772319,0.4586,2505.2,2505.1,0.27952]
[1730522775024,1.60886226,2505.2,2505.1,0.27952]
[1730522775320,1.60886226,2505.2,2504.7,3.2078]
[1730522775321,5.60086226,2505.2,2504.7,3.2078]
[1730522775522,2.08650113,2504.8,2504.7,0.27956]
[1730522775719,3.2078,2504.8,2504.7,0.27956]
[1730522776021,7.12602642,2504.8,2504.7,0.27956]
[1730522776824,3.91822642,2504.8,2504.7,0.27956]
[1730522785833,1.3101,2504.8,2504.7,0.27956]
[1730522786027,3.91822642,2504.8,2504.7,0.27956]
[1730522795425,0.27957,2504.7,2504.6,0.27957]
[1730522795626,4.63763226,2504.7,2504.6,0.27957]
[1730522795827,4.35806226,2504.7,2504.6,0.27957]
[1730522796730,4.35806226,2504.7,2504.3,1.6969]
[1730522797031,0.27958,2504.6,2504.5,0.27958]
[1730522798428,4.63764226,2504.7,2504.5,0.27958]
[1730522798635,4.35806226,2504.7,2504.5,0.27958]
[1730522798936,0.27958,2504.6,2504.5,0.27958]
[1730522799129,0.27958,2504.6,2504.1,0.822]
[1730522799130,3.9928,2504.6,2504.1,0.822]
[1730522799329,2.08992155,2504.2,2504.1,1.10163]
[1730522800128,2.51872155,2504.2,2504.1,1.10163]
[1730522800833,2.51872155,2504.2,2504.1,2.25189226]
[1730522801642,2.08992155,2504.3,2504.2,0.27962]
[1730522801836,2.08992155,2504.3,2504.2,1.42988226]
[1730522802136,2.08992155,2504.3,2504.2,1.89218226]
[1730522808535,2.08992155,2504.4,2504.2,1.61256226]
[1730522808727,2.08992155,2504.4,2504.3,1.19321]
[1730522811632,2.08992155,2504.5,2504.4,0.2796]
[1730522811838,2.08853624,2504.5,2504.4,0.2796]
[1730522812041,3.03523821,2504.6,2504.3,1.61264]
[1730522812233,3.03523821,2504.6,2504.5,0.27959]
[1730522815943,2.08983614,2504.6,2504.5,1.15026226]
[1730522816239,2.08983614,2504.6,2504.5,1.42985226]
[1730522816946,2.08983614,2504.6,2504.5,5.42265226]
[1730522817135,2.08983614,2504.7,2504.5,5.6951891]
[1730522817340,2.08983614,2504.7,2504.6,6.24464226]
[1730522817534,2.61243821,2504.9,2504.6,0.822]
[1730522817740,2.52918004,2504.7,2504.6,0.822]
[1730522818134,2.52918004,2504.7,2504.6,1.53078]
[1730522818340,0.4385,2504.7,2504.6,1.53078]
[1730522818939,2.52895226,2504.7,2504.6,1.53078]
[1730522819247,2.52892112,2504.7,2504.6,1.53078]
[1730522819542,0.4385,2504.7,2504.6,1.53078]
[1730522820543,3.05093821,2504.7,2504.6,1.53078]
[1730522820936,3.05093821,2504.7,2504.6,1.10158]
[1730522823247,3.05093821,2504.7,2504.6,0.27958]
[1730522827048,0.4385,2504.7,2504.6,0.27958]
[1730522827251,3.05093821,2504.7,2504.6,0.27958]
[1730522831756,0.4385,2504.7,2504.6,0.27958]
[1730522835444,0.4385,2504.7,2504.2,0.69905]
[1730522835445,8.19400047,2504.7,2504.2,0.69905]
[1730522835651,8.19400047,2504.7,2504.2,1.10162]
[1730522835652,2.09039671,2504.3,2504.2,1.10162]
[1730522835845,2.09039671,2504.3,2504.2,1.65415394]
[1730522836952,3.95713821,2504.4,2504.3,0.27961]
[1730522837153,1.3447,2504.4,2504.3,0.27961]
[1730522837759,3.95728999,2504.4,2504.3,0.27961]
[1730522839154,1.3447,2504.4,2504.0,6.03237193]
[1730522839462,2.09005885,2504.1,2504.0,3.48745]
[1730522839658,2.09005885,2504.1,2504.0,3.2078]
[1730522839659,2.61256756,2504.1,2504.0,3.2078]
[1730522839859,2.61256756,2504.1,2504.0,3.48745]
[1730522839860,3.04726756,2504.1,2504.0,3.48745]
[1730522841354,0.4347,2504.1,2504.0,3.48745]
[1730522841551,3.04726756,2504.1,2504.0,3.48745]
[1730522841854,3.04726756,2504.1,2504.0,0.27965]
[1730522842058,0.71434,2504.1,2503.9,1.10165]
[1730522842261,3.05719817,2504.0,2503.9,1.10165]
[1730522842953,0.4453,2504.0,2503.9,1.10165]
[1730522844757,0.89,2504.0,2503.9,1.10165]
[1730522845359,2.97836057,2504.0,2503.9,1.10165]
[1730522846056,0.89,2504.0,2503.9,1.10165]
[1730522846667,2.97797335,2504.0,2503.9,1.10165]
[1730522852366,0.89,2504.0,2503.9,1.10165]
[1730522857071,2.97797335,2504.0,2503.9,1.10165]
[1730522857266,0.89,2504.0,2503.9,1.10165]
[1730522859969,4.12823561,2504.0,2503.9,0.822]
[1730522860264,4.12823561,2504.0,2503.9,0.27966]
[1730522860265,2.31991226,2504.0,2503.9,0.27966]
[1730522860465,7.33356998,2504.0,2503.9,0.27966]
[1730522863575,4.12576998,2504.0,2503.9,0.27966]
[1730522864677,2.04026226,2504.0,2503.9,0.27966]
[1730522866171,4.12540382,2504.0,2503.9,0.27966]
[1730522867573,2.04026226,2504.0,2503.9,0.27966]
[1730522867779,4.12547082,2504.0,2503.9,0.27966]
[1730522869980,2.04026226,2504.0,2503.9,0.27966]
[1730522870172,4.12566227,2504.0,2503.9,0.27966]
[1730522870375,2.04026226,2504.0,2503.9,0.27966]
[1730522874474,4.65216043,2504.0,2503.9,0.27966]
[1730522874674,8.92541043,2504.0,2503.9,0.27966]
[1730522875173,8.64576043,2504.0,2503.9,0.27966]
[1730522875584,8.92541043,2504.0,2503.9,0.27966]
[1730522876181,8.64576043,2504.0,2503.5,0.9011]
[1730522876481,3.51679823,2503.7,2503.6,0.27969]
[1730522876678,1.42994226,2503.7,2503.6,0.27969]
[1730522876885,4.47744043,2503.7,2503.6,0.27969]
[1730522878385,7.68524043,2503.7,2503.6,0.27969]
[1730522878583,7.40556043,2503.7,2503.6,0.27969]
[1730522879483,7.40365243,2503.7,2503.6,0.27969]
[1730522880886,4.79366226,2503.7,2503.6,0.27969]
[1730522881676,1.58586226,2503.7,2503.6,0.27969]
[1730522889384,1.86554226,2503.7,2503.6,0.27969]
[1730522889884,3.2078,2503.8,2503.7,0.27968]
[1730522890307,4.722522,2504.0,2503.9,0.27966]
[1730522891784,5.002172,2504.0,2503.8,0.8578]
[1730522891987,0.27966,2503.9,2503.8,0.69926]
[1730522892193,0.4312,2503.9,2503.8,0.69926]
[1730522893596,0.4312,2503.9,2503.8,0.27966]
[1730522904006,3.83841974,2503.9,2503.8,0.27966]
[1730522904501,0.71086,2503.9,2503.8,0.27967]
[1730522904701,3.83841974,2503.9,2503.8,0.27967]
[1730522905306,0.71086,2503.9,2503.8,0.27967]
[1730522905704,3.83841974,2503.9,2503.8,0.27967]
[1730522906201,3.55875974,2503.9,2503.6,0.4541]
[1730522906409,1.59866226,2503.8,2503.7,0.27967]
[1730522909200,4.726222,2503.8,2503.7,0.27967]
[1730522909906,5.005892,2503.8,2503.7,0.27967]
[1730522910108,0.27968,2503.7,2503.6,0.27968]
[1730522911003,5.005902,2503.8,2503.7,0.27968]
[1730522911409,0.27969,2503.7,2503.6,0.27968]
[1730522911604,1.42995226,2503.7,2503.6,0.27968]
[1730522912702,1.15026226,2503.7,2503.6,0.27968]
[1730522913818,4.35806226,2503.7,2503.6,0.27968]
[1730522914821,1.15026226,2503.7,2503.6,0.27968]
[1730522915308,4.277822,2503.7,2503.6,0.27968]
[1730522915507,1.42994226,2503.7,2503.6,0.27968]
[1730522915710,4.557502,2503.7,2503.6,0.27968]
[1730522916410,0.27971,2503.5,2503.4,0.27971]
[1730522916613,1.42997226,2503.5,2503.4,0.27971]
[1730522916810,1.15026226,2503.5,2503.4,0.27971]
[1730522917012,2.02886226,2503.5,2503.4,0.27971]
[1730522920817,2.30856226,2503.5,2503.4,0.27971]
[1730522921014,0.27973,2503.3,2503.1,0.27975]
[1730522921219,3.76463865,2503.3,2503.2,0.55309739]
[1730522921422,3.76463865,2503.3,2503.2,0.83282739]
[1730522921618,1.15026226,2503.3,2503.2,0.83282739]
[1730522921820,3.76444266,2503.3,2503.2,0.83282739]
[1730522922119,3.76423688,2503.3,2503.2,0.83282739]
[1730522922420,1.15026226,2503.3,2503.2,0.83282739]
[1730522923115,3.76393522,2503.3,2503.2,0.83279993]
[1730522925819,3.76393522,2503.3,2503.2,0.27973]
[1730522926118,3.76349693,2503.3,2503.2,0.27973]
[1730522926321,1.15026226,2503.3,2503.2,0.27973]
[1730522927321,3.76313866,2503.3,2503.2,0.27973]
[1730522928523,1.15026226,2503.3,2503.2,0.27973]
[1730522929423,3.76260757,2503.3,2503.2,0.27973]
[1730522929622,1.15026226,2503.3,2503.2,0.27973]
[1730522929822,3.76259906,2503.3,2503.2,0.27973]
[1730522930021,1.15026226,2503.3,2503.2,0.27973]
[1730522930221,3.7624036,2503.3,2503.2,0.27973]
[1730522943228,2.61214134,2503.3,2503.2,0.27973]
[1730522943931,2.31527226,2503.4,2503.0,4.32618]
[1730522943932,4.6477036,2503.4,2503.3,0.27972]
[1730522944127,2.03556226,2503.4,2503.3,0.27972]
[1730522960137,2.03556226,2503.4,2503.3,0.83311006]
[1730522962342,5.163122,2503.4,2503.3,0.83326154]
[1730522966140,5.163122,2503.4,2503.3,1.3870009]
[1730522966642,5.163122,2503.4,2503.3,1.38699913]
[1730522968737,5.163122,2503.4,2503.3,5.38139913]
[1730522968738,3.12755974,2503.4,2503.3,5.38139913]
[1730522968937,3.12755974,2503.6,2503.3,5.98755396]
[1730522969134,3.12755974,2503.6,2503.5,0.2797]
[1730522969439,3.12755974,2503.7,2503.6,0.27969]
[1730522969645,3.12755974,2503.7,2503.6,0.71289]
[1730522969839,3.12755974,2503.7,2503.6,5.26094533]
[1730522970247,4.277822,2503.7,2503.6,4.70729]
[1730522970944,4.277822,2503.7,2503.6,5.26070697]
[1730522971142,4.277822,2503.7,2503.6,4.70729]
[1730522971342,1.15026226,2503.7,2503.6,5.2606046]
[1730522971843,1.15026226,2503.7,2503.6,5.26060476]
[1730522972238,1.15026226,2503.7,2503.6,4.70729]
[1730522972854,1.15026226,2503.7,2503.6,5.26051506]
[1730522973344,1.15026226,2503.7,2503.6,5.26041958]
[1730522973532,1.15026226,2503.7,2503.6,4.70729]
[1730522974138,1.15026226,2503.7,2503.6,0.71289]
[1730522975534,2.61284982,2503.7,2503.6,4.98057524]
[1730522975741,2.61284982,2503.8,2503.6,4.98057524]
[1730522975943,2.61284982,2503.8,2503.7,0.83265524]
[1730522976346,6.97091208,2503.9,2503.7,0.55297524]
[1730522976548,6.97091208,2503.9,2503.8,0.27967]
[1730522976842,3.2078,2503.9,2503.8,0.27967]
[1730522977048,3.2078,2503.9,2503.8,4.82605766]
[1730522977348,5.29783077,2503.9,2503.8,4.27327]
[1730522977647,5.29783077,2503.9,2503.8,4.82584649]
[1730522978144,5.29783077,2503.9,2503.8,4.27327]
[1730522978643,2.09003077,2503.9,2503.8,4.27327]
[1730522978845,3.24029303,2503.9,2503.8,4.27327]
[1730522979743,3.66809303,2503.9,2503.8,4.27327]
[1730522980742,3.66809303,2503.9,2503.8,0.27967]
[1730522981846,3.66809303,2503.9,2503.8,1.10167]
[1730522983947,2.09003077,2504.0,2503.8,0.822]
[1730522984142,2.09003077,2504.0,2503.9,0.74196]
[1730522985455,2.09003077,2504.1,2504.0,0.27965]
[1730522985648,2.09003077,2504.1,2504.0,0.74085]
[1730522986443,4.13829303,2504.2,2504.1,0.27963]
[1730522986950,3.69529303,2504.2,2504.1,0.27963]
[1730522988255,2.09003077,2504.2,2504.1,4.27323]
[1730522988446,3.66729303,2504.3,2504.2,0.27962]
[1730522988752,1.57726226,2504.3,2504.2,0.27962]
[1730522990454,6.44809303,2504.5,2504.4,0.2796]
[1730522990655,6.87279303,2504.5,2504.4,0.2796]
[1730522990859,6.87279303,2504.5,2504.4,1.1016]
[1730522991557,4.78276226,2504.5,2504.4,1.1016]
[1730522992858,6.87279303,2504.5,2504.4,1.1016]
[1730522994449,5.06235226,2504.5,2504.1,0.822]
[1730522994650,1.15026226,2504.2,2504.1,1.10163]
[1730522995549,1.60756226,2504.2,2504.1,1.10163]
[1730523003251,0.4573,2504.2,2504.1,1.10163]
[1730523008175,0.4427,2504.3,2504.2,0.27962]
[1730523008769,2.98183077,2504.4,2504.1,1.24]
[1730523008970,2.98183077,2504.4,2504.3,0.27961]
[1730523010269,0.4531,2504.4,2504.3,0.27961]
[1730523010775,6.44809303,2504.5,2504.4,0.2796]
[1730523011067,6.87199303,2504.5,2504.4,0.2796]
[1730523012175,7.31139303,2504.5,2504.4,0.2796]
[1730523012677,4.10359303,2504.5,2504.4,0.2796]
[1730523013973,4.10359303,2504.5,2504.3,0.4412]
[1730523013974,8.09639303,2504.5,2504.0,3.2078]
[1730523014167,1.15026226,2504.1,2504.0,0.27965]
[1730523014372,3.24029303,2504.1,2504.0,0.27965]
[1730523014572,4.56289303,2504.1,2504.0,0.27965]
[1730523016372,2.47286226,2504.1,2504.0,0.27965]
[1730523018470,5.08571208,2504.1,2504.0,0.27965]
[1730523024273,3.93544982,2504.1,2504.0,0.27965]
[1730523026277,3.93544982,2504.1,2504.0,0.71305]
[1730523026478,3.49224982,2504.1,2504.0,1.17125]
[1730523029182,3.49224982,2504.1,2504.0,1.72414719]
[1730523030189,0.8794,2504.1,2504.0,1.72416651]
[1730523030488,0.8794,2504.1,2504.0,1.72416636]
[1730523031894,3.48951548,2504.1,2504.0,1.72416636]
[1730523032192,0.8794,2504.1,2504.0,1.72416636]
[1730523032790,3.48950769,2504.1,2504.0,1.72416636]
[1730523033189,0.8794,2504.1,2504.0,1.72416636]
[1730523033588,3.48946209,2504.1,2504.0,1.72416636]
[1730523034697,2.61006209,2504.1,2504.0,1.72415985]
[1730523036300,2.61006209,2504.2,2504.1,0.27963]
[1730523036492,2.61006209,2504.2,2504.1,0.83253985]
[1730523036795,2.61006209,2504.2,2504.1,4.82613985]
[1730523036997,3.06646209,2504.3,2504.1,4.54650985]
[1730523037193,3.06646209,2504.3,2504.2,0.83252985]
[1730523037899,3.06646209,2504.3,2504.2,0.83256754]
[1730523038487,3.06646209,2504.3,2504.2,0.83258998]
[1730523038686,2.61006209,2504.3,2504.2,4.82618998]